[Event "Early-Titled-Tuesday-Blitz-March-05-2024"]
[Site "Chess.com"]
[Date "2024.03.05"]
[Round "2"]
[White "Akylbek2021"]
[Black "Muracle"]
[Result "0-1"]
[WhiteElo "2278"]
[BlackElo "2508"]
[TimeControl "180+1"]
[EndTime "8:15:34 PST"]
[Termination "Muracle won by resignation"]

1. e4 {[%clk 0:03:00.9]} 1... c6 {[%clk 0:02:59.9]} 2. d4 {[%clk 0:02:59.9]}
2... d5 {[%clk 0:03:00.3]} 3. Nc3 {[%clk 0:03:00.4]} 3... dxe4 {[%clk
0:03:00.8]} 4. Nxe4 {[%clk 0:03:01.3]} 4... Nf6 {[%clk 0:03:01.5]} 5. Nxf6+
{[%clk 0:03:02]} 5... exf6 {[%clk 0:03:00.8]} 6. Be2 {[%clk 0:03:02.5]} 6... Bd6
{[%clk 0:03:01.5]} 7. Bf3 {[%clk 0:03:03]} 7... O-O {[%clk 0:03:02.2]} 8. Ne2
{[%clk 0:03:03.6]} 8... Re8 {[%clk 0:03:02.9]} 9. O-O {[%clk 0:03:03.2]} 9...
Nd7 {[%clk 0:03:03.5]} 10. c4 {[%clk 0:03:02.9]} 10... Nf8 {[%clk 0:03:04.1]}
11. c5 {[%clk 0:02:59.3]} 11... Bc7 {[%clk 0:03:04.1]} 12. Be3 {[%clk
0:02:59.6]} 12... Ng6 {[%clk 0:03:03.9]} 13. b3 {[%clk 0:02:56.6]} 13... Nh4
{[%clk 0:03:03.4]} 14. Nc3 {[%clk 0:02:54.2]} 14... f5 {[%clk 0:03:01.1]} 15. d5
{[%clk 0:02:49.4]} 15... f4 {[%clk 0:02:57.6]} 16. Bd4 {[%clk 0:02:48.8]} 16...
Qg5 {[%clk 0:02:38.5]} 17. d6 {[%clk 0:02:37.9]} 17... Bh3 {[%clk 0:02:04.7]}
18. g3 {[%clk 0:02:27.6]} 18... Ba5 {[%clk 0:01:45.5]} 19. Ne4 {[%clk
0:02:09.4]} 19... Qg6 {[%clk 0:01:44.6]} 20. Re1 {[%clk 0:01:22.9]} 20... Bxe1
{[%clk 0:01:34.8]} 21. Nf6+ {[%clk 0:01:15.6]} 21... gxf6 {[%clk 0:01:32.6]} 22.
Bh5 {[%clk 0:01:15.7]} 22... Qg5 {[%clk 0:01:25.2]} 0-1

[Event "Early-Titled-Tuesday-Blitz-March-05-2024"]
[Site "Chess.com"]
[Date "2024.03.05"]
[Round "2"]
[White "MITerryble"]
[Black "Mikasinski"]
[Result "1-0"]
[WhiteElo "3031"]
[BlackElo "2618"]
[TimeControl "180+1"]
[EndTime "8:15:39 PST"]
[Termination "MITerryble won by resignation"]

1. e4 {[%clk 0:03:00.9]} 1... c5 {[%clk 0:02:59.8]} 2. Nf3 {[%clk 0:03:01]} 2...
d6 {[%clk 0:02:59.5]} 3. Bb5+ {[%clk 0:03:00.8]} 3... Bd7 {[%clk 0:02:55.2]} 4.
Bxd7+ {[%clk 0:03:00.5]} 4... Qxd7 {[%clk 0:02:56.1]} 5. O-O {[%clk 0:03:00.5]}
5... Nc6 {[%clk 0:02:56.3]} 6. c3 {[%clk 0:03:00.8]} 6... Nf6 {[%clk 0:02:56.3]}
7. d4 {[%clk 0:03:00.9]} 7... cxd4 {[%clk 0:02:56.2]} 8. cxd4 {[%clk 0:03:00.4]}
8... e6 {[%clk 0:02:56.8]} 9. d5 {[%clk 0:03:00.6]} 9... exd5 {[%clk 0:02:03]}
10. exd5 {[%clk 0:03:00.5]} 10... Nb4 {[%clk 0:01:55]} 11. Qe1+ {[%clk
0:02:59.2]} 11... Be7 {[%clk 0:01:49.5]} 12. Qxb4 {[%clk 0:02:58.8]} 12... Nxd5
{[%clk 0:01:49.7]} 13. Qb3 {[%clk 0:02:56.9]} 13... Nb6 {[%clk 0:01:43.5]} 14.
Be3 {[%clk 0:02:55.9]} 14... Nc8 {[%clk 0:01:36.2]} 15. Nc3 {[%clk 0:02:55.7]}
15... O-O {[%clk 0:01:35.7]} 16. Nd5 {[%clk 0:02:55.9]} 16... Bd8 {[%clk
0:01:35.6]} 17. Rac1 {[%clk 0:02:55.8]} 17... Ne7 {[%clk 0:01:35.3]} 18. Rfd1
{[%clk 0:02:56.1]} 18... Nf5 {[%clk 0:01:34.7]} 19. Nd4 {[%clk 0:02:52.3]} 19...
Nxe3 {[%clk 0:01:32.3]} 20. Qxe3 {[%clk 0:02:52.1]} 20... Re8 {[%clk 0:01:32.3]}
21. Qf3 {[%clk 0:02:46.8]} 21... Rc8 {[%clk 0:01:29.1]} 22. b3 {[%clk
0:02:39.8]} 22... Rc5 {[%clk 0:01:22.8]} 23. h3 {[%clk 0:02:30.3]} 23... Bg5
{[%clk 0:01:18.9]} 24. Rc4 {[%clk 0:02:11.9]} 24... b5 {[%clk 0:01:14.6]} 25.
Rc3 {[%clk 0:02:03.9]} 25... Re5 {[%clk 0:01:02.7]} 26. Rxc5 {[%clk 0:02:00.1]}
26... dxc5 {[%clk 0:01:01.4]} 27. Nc6 {[%clk 0:02:00.6]} 1-0

[Event "Early-Titled-Tuesday-Blitz-March-05-2024"]
[Site "Chess.com"]
[Date "2024.03.05"]
[Round "2"]
[White "otrov-11"]
[Black "Chesstiger64"]
[Result "1-0"]
[WhiteElo "2610"]
[BlackElo "2362"]
[TimeControl "180+1"]
[EndTime "8:15:42 PST"]
[Termination "otrov-11 won by checkmate"]

1. d4 {[%clk 0:03:00.9]} 1... d6 {[%clk 0:02:55.1]} 2. Nf3 {[%clk 0:02:58.4]}
2... Bg4 {[%clk 0:02:55]} 3. g3 {[%clk 0:02:57.3]} 3... Bxf3 {[%clk 0:02:54.5]}
4. exf3 {[%clk 0:02:58.2]} 4... d5 {[%clk 0:02:54.8]} 5. Bg2 {[%clk 0:02:58.6]}
5... c6 {[%clk 0:02:55.2]} 6. O-O {[%clk 0:02:59.2]} 6... e6 {[%clk 0:02:55.6]}
7. f4 {[%clk 0:02:59.9]} 7... Bd6 {[%clk 0:02:55.5]} 8. Nd2 {[%clk 0:03:00.3]}
8... Ne7 {[%clk 0:02:55.7]} 9. Nf3 {[%clk 0:03:00.3]} 9... Nd7 {[%clk
0:02:55.7]} 10. Ne5 {[%clk 0:03:00.7]} 10... O-O {[%clk 0:02:54.2]} 11. h4
{[%clk 0:02:58.6]} 11... c5 {[%clk 0:02:53.9]} 12. dxc5 {[%clk 0:02:55.2]} 12...
Bxc5 {[%clk 0:02:43.1]} 13. Nd3 {[%clk 0:02:49.4]} 13... Bb6 {[%clk 0:02:42.2]}
14. c3 {[%clk 0:02:26.3]} 14... Nf5 {[%clk 0:02:39.5]} 15. Kh2 {[%clk 0:02:24]}
15... Rc8 {[%clk 0:02:25.2]} 16. Bh3 {[%clk 0:02:24]} 16... g6 {[%clk
0:02:18.9]} 17. Qf3 {[%clk 0:02:24]} 17... Rc4 {[%clk 0:02:13.3]} 18. h5 {[%clk
0:02:19.7]} 18... Nf6 {[%clk 0:02:06.9]} 19. Ne5 {[%clk 0:02:15.9]} 19... Re4
{[%clk 0:02:03.4]} 20. hxg6 {[%clk 0:02:12.7]} 20... hxg6 {[%clk 0:02:02.8]} 21.
Qd3 {[%clk 0:02:12.8]} 21... Kg7 {[%clk 0:01:54.3]} 22. f3 {[%clk 0:02:12]}
22... Rxe5 {[%clk 0:01:41.7]} 23. fxe5 {[%clk 0:02:11.7]} 23... Nd7 {[%clk
0:01:40.1]} 24. Re1 {[%clk 0:02:03.8]} 24... Rh8 {[%clk 0:01:35.2]} 25. Bf4
{[%clk 0:02:01.7]} 25... a5 {[%clk 0:01:13.7]} 26. a4 {[%clk 0:02:00.8]} 26...
Rh7 {[%clk 0:01:07.8]} 27. Kg2 {[%clk 0:01:59.7]} 27... Qh8 {[%clk 0:01:07.7]}
28. Rh1 {[%clk 0:01:58.7]} 28... Kg8 {[%clk 0:01:05.4]} 29. Bxf5 {[%clk
0:01:58.1]} 29... gxf5 {[%clk 0:01:04.6]} 30. Rxh7 {[%clk 0:01:58.2]} 30... Qxh7
{[%clk 0:01:05.1]} 31. Rh1 {[%clk 0:01:58.8]} 31... Qg6 {[%clk 0:01:03.6]} 32.
Qb5 {[%clk 0:01:59.7]} 32... f6 {[%clk 0:00:50.4]} 33. Qxd7 {[%clk 0:01:59.6]}
33... fxe5 {[%clk 0:00:50.8]} 34. Bxe5 {[%clk 0:01:59.4]} 34... Bc5 {[%clk
0:00:50]} 35. Rh8# {[%clk 0:01:59]} 1-0

[Event "Early-Titled-Tuesday-Blitz-March-05-2024"]
[Site "Chess.com"]
[Date "2024.03.05"]
[Round "2"]
[White "Evgeny81"]
[Black "Statham_01"]
[Result "1-0"]
[WhiteElo "2766"]
[BlackElo "2529"]
[TimeControl "180+1"]
[EndTime "8:15:44 PST"]
[Termination "Evgeny81 won by resignation"]

1. e4 {[%clk 0:03:00.9]} 1... e5 {[%clk 0:02:59.3]} 2. Nf3 {[%clk 0:03:00.4]}
2... Nf6 {[%clk 0:02:59.6]} 3. Nxe5 {[%clk 0:02:59.2]} 3... Nc6 {[%clk
0:02:59.9]} 4. Nxc6 {[%clk 0:02:58.8]} 4... dxc6 {[%clk 0:03:00.2]} 5. Be2
{[%clk 0:02:54.8]} 5... Bc5 {[%clk 0:02:59.3]} 6. d3 {[%clk 0:02:50.4]} 6... h5
{[%clk 0:02:59.1]} 7. Be3 {[%clk 0:02:46]} 7... Bxe3 {[%clk 0:02:56.2]} 8. fxe3
{[%clk 0:02:46.9]} 8... Ng4 {[%clk 0:02:56.4]} 9. Bxg4 {[%clk 0:02:45]} 9...
Bxg4 {[%clk 0:02:38.9]} 10. Qd2 {[%clk 0:02:44.4]} 10... Qh4+ {[%clk 0:02:31.8]}
11. Qf2 {[%clk 0:02:42.6]} 11... Qg5 {[%clk 0:02:30.3]} 12. Nd2 {[%clk
0:02:38.5]} 12... O-O-O {[%clk 0:02:26.8]} 13. O-O {[%clk 0:02:34.5]} 13... Kb8
{[%clk 0:02:17.9]} 14. Qf4 {[%clk 0:02:31.1]} 14... Qc5 {[%clk 0:02:07]} 15.
Rac1 {[%clk 0:02:26.5]} 15... g5 {[%clk 0:01:31.4]} 16. Qf2 {[%clk 0:02:26.3]}
16... Rdf8 {[%clk 0:01:28.6]} 17. d4 {[%clk 0:02:17.3]} 17... Qa5 {[%clk
0:01:21.8]} 18. a3 {[%clk 0:02:11.7]} 18... Be6 {[%clk 0:01:20.6]} 19. c4 {[%clk
0:02:07.3]} 19... f5 {[%clk 0:01:17.5]} 20. Nb3 {[%clk 0:01:57.6]} 20... Qb6
{[%clk 0:01:13.2]} 21. Nc5 {[%clk 0:01:57.9]} 21... Bc8 {[%clk 0:01:13]} 22. b4
{[%clk 0:01:49.1]} 22... a5 {[%clk 0:01:11.3]} 23. e5 {[%clk 0:01:45.2]} 23...
axb4 {[%clk 0:01:08.4]} 24. axb4 {[%clk 0:01:46.1]} 24... Qxb4 {[%clk
0:01:02.1]} 25. Na6+ {[%clk 0:01:43.8]} 25... bxa6 {[%clk 0:01:03]} 26. Rb1
{[%clk 0:01:44.1]} 26... a5 {[%clk 0:01:03.4]} 27. Rxb4+ {[%clk 0:01:43]} 27...
axb4 {[%clk 0:01:04.3]} 28. Qb2 {[%clk 0:01:43.3]} 28... Bb7 {[%clk 0:01:04.7]}
29. Qxb4 {[%clk 0:01:43.1]} 29... f4 {[%clk 0:01:04.3]} 30. Rb1 {[%clk
0:01:42.5]} 1-0

[Event "Early-Titled-Tuesday-Blitz-March-05-2024"]
[Site "Chess.com"]
[Date "2024.03.05"]
[Round "2"]
[White "manitodeplomo"]
[Black "Defenstrator"]
[Result "1-0"]
[WhiteElo "2706"]
[BlackElo "2436"]
[TimeControl "180+1"]
[EndTime "8:15:46 PST"]
[Termination "manitodeplomo won by resignation"]

1. d4 {[%clk 0:03:00.9]} 1... Nf6 {[%clk 0:02:46.7]} 2. c4 {[%clk 0:03:00.4]}
2... g6 {[%clk 0:02:46.8]} 3. Nc3 {[%clk 0:03:00]} 3... Bg7 {[%clk 0:02:46.9]}
4. e4 {[%clk 0:02:59.9]} 4... O-O {[%clk 0:02:47.2]} 5. Be2 {[%clk 0:03:00.6]}
5... b6 {[%clk 0:02:44.7]} 6. Nf3 {[%clk 0:02:57.7]} 6... Bb7 {[%clk 0:02:44.3]}
7. Qc2 {[%clk 0:02:57.5]} 7... e6 {[%clk 0:02:39]} 8. e5 {[%clk 0:02:49.8]} 8...
Ne8 {[%clk 0:02:36]} 9. O-O {[%clk 0:02:45.9]} 9... f6 {[%clk 0:02:30.9]} 10.
exf6 {[%clk 0:02:43.6]} 10... Nxf6 {[%clk 0:02:30]} 11. Bg5 {[%clk 0:02:41.3]}
11... h6 {[%clk 0:02:15.2]} 12. Bh4 {[%clk 0:02:38.8]} 12... g5 {[%clk
0:02:15.5]} 13. Bg3 {[%clk 0:02:38.3]} 13... Nh5 {[%clk 0:02:11.9]} 14. Rad1
{[%clk 0:02:37.9]} 14... Nc6 {[%clk 0:01:48.4]} 15. d5 {[%clk 0:02:34.3]} 15...
Nxg3 {[%clk 0:01:36.6]} 16. hxg3 {[%clk 0:02:30.8]} 16... exd5 {[%clk
0:01:28.6]} 17. cxd5 {[%clk 0:02:23.9]} 17... Ne5 {[%clk 0:01:18.7]} 18. Nd4
{[%clk 0:02:19]} 18... Qf6 {[%clk 0:01:05.5]} 19. g4 {[%clk 0:02:13.5]} 19...
Ng6 {[%clk 0:00:57.2]} 20. Nf5 {[%clk 0:02:10.4]} 20... Nf4 {[%clk 0:00:51.9]}
21. Bc4 {[%clk 0:02:07.5]} 21... d6 {[%clk 0:00:52.8]} 22. g3 {[%clk 0:02:06.3]}
22... Ng6 {[%clk 0:00:50.5]} 23. Rfe1 {[%clk 0:02:06.4]} 23... Ne5 {[%clk
0:00:51.2]} 24. Be2 {[%clk 0:02:04.6]} 24... h5 {[%clk 0:00:45.3]} 25. Ne4
{[%clk 0:02:02.9]} 25... Qg6 {[%clk 0:00:36.1]} 26. Ne7+ {[%clk 0:02:01.5]} 1-0

[Event "Early-Titled-Tuesday-Blitz-March-05-2024"]
[Site "Chess.com"]
[Date "2024.03.05"]
[Round "2"]
[White "MasterKroket"]
[Black "knightinshiningarmour16"]
[Result "0-1"]
[WhiteElo "2466"]
[BlackElo "2251"]
[TimeControl "180+1"]
[EndTime "8:15:53 PST"]
[Termination "knightinshiningarmour16 won by resignation"]

1. e4 {[%clk 0:02:57.4]} 1... c6 {[%clk 0:02:59.6]} 2. d4 {[%clk 0:02:57.3]}
2... d5 {[%clk 0:02:59.6]} 3. Nc3 {[%clk 0:02:57.7]} 3... a6 {[%clk 0:02:59.3]}
4. e5 {[%clk 0:02:52.8]} 4... Bf5 {[%clk 0:02:58.7]} 5. g4 {[%clk 0:02:51.4]}
5... Bd7 {[%clk 0:02:58.6]} 6. Bg2 {[%clk 0:02:47.4]} 6... e6 {[%clk 0:02:58.7]}
7. Nge2 {[%clk 0:02:43.8]} 7... c5 {[%clk 0:02:58.7]} 8. dxc5 {[%clk 0:02:40.4]}
8... Bxc5 {[%clk 0:02:58.8]} 9. Be3 {[%clk 0:02:37.7]} 9... Bxe3 {[%clk
0:02:57.6]} 10. fxe3 {[%clk 0:02:37.5]} 10... Qb6 {[%clk 0:02:57.2]} 11. Qd4
{[%clk 0:02:33.1]} 11... Qb5 {[%clk 0:02:49.2]} 12. O-O {[%clk 0:02:27.6]} 12...
Qxb2 {[%clk 0:02:36.6]} 13. Rab1 {[%clk 0:02:23.7]} 13... Qxc2 {[%clk
0:02:36.5]} 14. Rxb7 {[%clk 0:02:23.7]} 14... Nc6 {[%clk 0:02:36.1]} 15. Qc5
{[%clk 0:02:12.7]} 15... Nge7 {[%clk 0:02:31.3]} 16. Qd6 {[%clk 0:01:46.9]}
16... Rd8 {[%clk 0:02:28.2]} 17. Qa3 {[%clk 0:01:13.9]} 17... Qd3 {[%clk
0:02:23.5]} 18. Kh1 {[%clk 0:00:54.6]} 18... O-O {[%clk 0:02:21.2]} 19. Nf4
{[%clk 0:00:44.8]} 19... Qxe3 {[%clk 0:02:17.1]} 20. Qxa6 {[%clk 0:00:36.3]}
20... Qxe5 {[%clk 0:02:12.7]} 21. Nb5 {[%clk 0:00:31.8]} 21... Bc8 {[%clk
0:02:12.4]} 22. Nd3 {[%clk 0:00:27.7]} 22... Qe2 {[%clk 0:02:08.3]} 23. Nc3
{[%clk 0:00:20.3]} 23... Bxb7 {[%clk 0:02:05.2]} 24. Nxe2 {[%clk 0:00:20.6]}
24... Bxa6 {[%clk 0:02:05]} 25. Rd1 {[%clk 0:00:21.3]} 0-1

[Event "Early-Titled-Tuesday-Blitz-March-05-2024"]
[Site "Chess.com"]
[Date "2024.03.05"]
[Round "2"]
[White "corvachesky"]
[Black "RogelioOscarSanchezB"]
[Result "1-0"]
[WhiteElo "2444"]
[BlackElo "2023"]
[TimeControl "180+1"]
[EndTime "8:16:08 PST"]
[Termination "corvachesky won by resignation"]

1. Nf3 {[%clk 0:02:57.4]} 1... Nf6 {[%clk 0:02:59.3]} 2. c4 {[%clk 0:02:57.6]}
2... g6 {[%clk 0:02:58.5]} 3. g3 {[%clk 0:02:57.9]} 3... Bg7 {[%clk 0:02:58.6]}
4. Bg2 {[%clk 0:02:58.8]} 4... O-O {[%clk 0:02:58.6]} 5. O-O {[%clk 0:02:59.7]}
5... d6 {[%clk 0:02:57.4]} 6. d4 {[%clk 0:02:59.2]} 6... Nc6 {[%clk 0:02:56.5]}
7. b3 {[%clk 0:02:59.1]} 7... Re8 {[%clk 0:02:54]} 8. Bb2 {[%clk 0:02:57.4]}
8... Bg4 {[%clk 0:02:51.8]} 9. h3 {[%clk 0:02:56.2]} 9... Bxf3 {[%clk
0:02:49.7]} 10. Bxf3 {[%clk 0:02:57.1]} 10... e5 {[%clk 0:02:49.2]} 11. dxe5
{[%clk 0:02:54.9]} 11... dxe5 {[%clk 0:02:47.1]} 12. Nc3 {[%clk 0:02:51.3]}
12... Qc8 {[%clk 0:02:35.4]} 13. Bg2 {[%clk 0:02:48.4]} 13... Nd4 {[%clk
0:02:27.6]} 14. e3 {[%clk 0:02:43.3]} 14... Ne6 {[%clk 0:02:25.4]} 15. Nd5
{[%clk 0:02:39.3]} 15... c6 {[%clk 0:02:24.3]} 16. Nxf6+ {[%clk 0:02:28.1]}
16... Bxf6 {[%clk 0:02:24.2]} 17. f4 {[%clk 0:02:23.1]} 17... Nc5 {[%clk
0:02:18.6]} 18. Qd6 {[%clk 0:02:07.9]} 18... Nd7 {[%clk 0:01:37.7]} 19. Rad1
{[%clk 0:01:59.6]} 19... Rd8 {[%clk 0:01:10.6]} 20. fxe5 {[%clk 0:01:46.3]}
20... Bg7 {[%clk 0:01:03.1]} 21. Qe7 {[%clk 0:01:41.7]} 1-0

[Event "Early-Titled-Tuesday-Blitz-March-05-2024"]
[Site "Chess.com"]
[Date "2024.03.05"]
[Round "2"]
[White "FlemingA"]
[Black "GeorgiosSouleidis"]
[Result "1/2-1/2"]
[WhiteElo "2446"]
[BlackElo "2700"]
[TimeControl "180+1"]
[EndTime "8:16:10 PST"]
[Termination "Game drawn by repetition"]

1. Nc3 {[%clk 0:03:00.9]} 1... c5 {[%clk 0:02:57.7]} 2. e4 {[%clk 0:02:55.9]}
2... Nc6 {[%clk 0:02:56.6]} 3. Nge2 {[%clk 0:02:54.4]} 3... e6 {[%clk
0:02:56.8]} 4. g3 {[%clk 0:02:53.7]} 4... Nf6 {[%clk 0:02:48]} 5. Bg2 {[%clk
0:02:53.4]} 5... d5 {[%clk 0:02:45.7]} 6. exd5 {[%clk 0:02:48.1]} 6... exd5
{[%clk 0:02:46.1]} 7. d4 {[%clk 0:02:49]} 7... Be7 {[%clk 0:02:39.4]} 8. O-O
{[%clk 0:02:41.8]} 8... h6 {[%clk 0:02:34.3]} 9. dxc5 {[%clk 0:02:40.9]} 9... d4
{[%clk 0:02:34.6]} 10. Nb5 {[%clk 0:02:16.4]} 10... Bxc5 {[%clk 0:02:32.7]} 11.
c3 {[%clk 0:02:16.9]} 11... dxc3 {[%clk 0:02:17.6]} 12. Qxd8+ {[%clk 0:02:10.6]}
12... Kxd8 {[%clk 0:02:18.5]} 13. Nexc3 {[%clk 0:02:01.8]} 13... Be6 {[%clk
0:02:00.7]} 14. Bf4 {[%clk 0:01:56.6]} 14... Ke7 {[%clk 0:01:52.2]} 15. Na4
{[%clk 0:01:34.9]} 15... Bb6 {[%clk 0:01:26.8]} 16. Bd6+ {[%clk 0:01:31.8]}
16... Kd8 {[%clk 0:01:21.7]} 17. Nxb6 {[%clk 0:01:31.8]} 17... axb6 {[%clk
0:01:22.6]} 18. Bc7+ {[%clk 0:01:31.5]} 18... Kc8 {[%clk 0:01:23.2]} 19. Bxb6
{[%clk 0:01:22.3]} 19... Ra6 {[%clk 0:01:23.2]} 20. Bc5 {[%clk 0:01:11.4]} 20...
Rd8 {[%clk 0:01:00.9]} 21. Nd6+ {[%clk 0:01:02.8]} 21... Kc7 {[%clk 0:00:56.9]}
22. Nb5+ {[%clk 0:01:02.6]} 22... Kc8 {[%clk 0:00:54.1]} 23. Nd6+ {[%clk
0:01:02.8]} 23... Kc7 {[%clk 0:00:54.5]} 24. Nb5+ {[%clk 0:01:03.2]} 24... Kc8
{[%clk 0:00:54.7]} 1/2-1/2

[Event "Early-Titled-Tuesday-Blitz-March-05-2024"]
[Site "Chess.com"]
[Date "2024.03.05"]
[Round "2"]
[White "Incognito_Knight"]
[Black "salzikis"]
[Result "1-0"]
[WhiteElo "2707"]
[BlackElo "2432"]
[TimeControl "180+1"]
[EndTime "8:16:15 PST"]
[Termination "Incognito_Knight won by resignation"]

1. e4 {[%clk 0:03:00.9]} 1... e5 {[%clk 0:02:59.2]} 2. Nf3 {[%clk 0:03:00.7]}
2... Nf6 {[%clk 0:02:59.2]} 3. Nc3 {[%clk 0:03:01]} 3... Nc6 {[%clk 0:02:58.9]}
4. a3 {[%clk 0:03:01.6]} 4... a6 {[%clk 0:02:54.6]} 5. d4 {[%clk 0:03:01.3]}
5... exd4 {[%clk 0:02:53.4]} 6. Nxd4 {[%clk 0:03:02.2]} 6... Bc5 {[%clk
0:02:53.2]} 7. Be3 {[%clk 0:02:59.8]} 7... Nxd4 {[%clk 0:02:52.1]} 8. Bxd4
{[%clk 0:03:00.7]} 8... Bxd4 {[%clk 0:02:52.3]} 9. Qxd4 {[%clk 0:03:01.4]} 9...
d6 {[%clk 0:02:53]} 10. O-O-O {[%clk 0:02:57.7]} 10... Be6 {[%clk 0:02:49.1]}
11. Bc4 {[%clk 0:02:32.8]} 11... Qe7 {[%clk 0:02:46.7]} 12. Bxe6 {[%clk
0:02:24.3]} 12... fxe6 {[%clk 0:02:41.3]} 13. e5 {[%clk 0:02:21.1]} 13... dxe5
{[%clk 0:02:41.4]} 14. Qxe5 {[%clk 0:02:11.3]} 14... O-O {[%clk 0:02:39.3]} 15.
f3 {[%clk 0:02:03.5]} 15... Rad8 {[%clk 0:02:39]} 16. Rhe1 {[%clk 0:01:56.9]}
16... Rxd1+ {[%clk 0:02:37.3]} 17. Rxd1 {[%clk 0:01:57.8]} 17... Kf7 {[%clk
0:02:33]} 18. Ne4 {[%clk 0:01:44.4]} 18... Kg8 {[%clk 0:02:25.5]} 19. Nc5 {[%clk
0:01:37.2]} 19... Re8 {[%clk 0:02:22.1]} 20. Nxb7 {[%clk 0:01:33.9]} 20... Nd5
{[%clk 0:02:19.3]} 21. c4 {[%clk 0:01:25]} 21... Nb6 {[%clk 0:01:59.9]} 22. Na5
{[%clk 0:01:01.8]} 22... Kf7 {[%clk 0:01:40.1]} 23. Nc6 {[%clk 0:00:55.5]} 23...
Qf6 {[%clk 0:01:40.1]} 24. Qxc7+ {[%clk 0:00:53.4]} 24... Kg6 {[%clk 0:01:40.7]}
25. Qxb6 {[%clk 0:00:47.6]} 25... e5 {[%clk 0:01:39.7]} 26. Nxe5+ {[%clk
0:00:40.3]} 26... Rxe5 {[%clk 0:01:37.2]} 27. Rd6 {[%clk 0:00:37.8]} 1-0

[Event "Early-Titled-Tuesday-Blitz-March-05-2024"]
[Site "Chess.com"]
[Date "2024.03.05"]
[Round "2"]
[White "GoltsevDmitry2000"]
[Black "LLariMarc"]
[Result "1-0"]
[WhiteElo "2709"]
[BlackElo "2395"]
[TimeControl "180+1"]
[EndTime "8:16:22 PST"]
[Termination "GoltsevDmitry2000 won by resignation"]

1. e4 {[%clk 0:02:58.6]} 1... e5 {[%clk 0:02:58.6]} 2. Nf3 {[%clk 0:02:58.3]}
2... Nc6 {[%clk 0:02:58.1]} 3. Bb5 {[%clk 0:02:56.6]} 3... a6 {[%clk 0:02:55.3]}
4. Ba4 {[%clk 0:02:56]} 4... Nf6 {[%clk 0:02:53]} 5. O-O {[%clk 0:02:55.5]} 5...
Be7 {[%clk 0:02:51.8]} 6. Re1 {[%clk 0:02:53.2]} 6... b5 {[%clk 0:02:50.7]} 7.
Bb3 {[%clk 0:02:52.6]} 7... d6 {[%clk 0:02:47.6]} 8. c3 {[%clk 0:02:51.7]} 8...
O-O {[%clk 0:02:40.2]} 9. d4 {[%clk 0:02:51.2]} 9... Bg4 {[%clk 0:02:37.3]} 10.
d5 {[%clk 0:02:49.9]} 10... Na5 {[%clk 0:02:31.5]} 11. Bc2 {[%clk 0:02:49.6]}
11... c6 {[%clk 0:02:27.4]} 12. h3 {[%clk 0:02:39.4]} 12... Bxf3 {[%clk
0:02:25.6]} 13. Qxf3 {[%clk 0:02:40.3]} 13... cxd5 {[%clk 0:02:25.8]} 14. exd5
{[%clk 0:02:39]} 14... Nc4 {[%clk 0:02:24]} 15. Bg5 {[%clk 0:02:36.7]} 15... h6
{[%clk 0:02:19.7]} 16. Bh4 {[%clk 0:02:34.1]} 16... g6 {[%clk 0:02:11.5]} 17. a4
{[%clk 0:02:27.3]} 17... Kg7 {[%clk 0:02:08]} 18. Na3 {[%clk 0:02:09.6]} 18...
Nxa3 {[%clk 0:02:00.5]} 19. Rxa3 {[%clk 0:02:10.5]} 19... Nd7 {[%clk 0:01:52.6]}
20. Bg3 {[%clk 0:02:07.5]} 20... Nb6 {[%clk 0:01:48.9]} 21. a5 {[%clk
0:01:57.8]} 21... Nd7 {[%clk 0:01:45.2]} 22. b4 {[%clk 0:01:52.9]} 22... Rc8
{[%clk 0:01:43.6]} 23. Bd3 {[%clk 0:01:44]} 23... f5 {[%clk 0:01:41.1]} 24. Qe2
{[%clk 0:01:36.1]} 24... Bf6 {[%clk 0:01:34.1]} 25. f3 {[%clk 0:01:35.1]} 25...
Bh4 {[%clk 0:01:31.6]} 26. Bf2 {[%clk 0:01:32.3]} 26... Bxf2+ {[%clk 0:01:30.8]}
27. Qxf2 {[%clk 0:01:33.2]} 27... Nf6 {[%clk 0:01:28.5]} 28. Qa7+ {[%clk
0:01:17]} 28... Qc7 {[%clk 0:01:14.1]} 29. Qxa6 {[%clk 0:01:17.9]} 29... Nxd5
{[%clk 0:01:12.3]} 30. Qxb5 {[%clk 0:01:16.3]} 30... Nxc3 {[%clk 0:01:12.3]} 31.
Qb6 {[%clk 0:01:16.2]} 31... Qxb6+ {[%clk 0:01:12.1]} 32. axb6 {[%clk
0:01:17.1]} 32... Nd5 {[%clk 0:01:12]} 33. Ra7+ {[%clk 0:01:12.3]} 33... Rf7
{[%clk 0:01:11.4]} 34. Rxf7+ {[%clk 0:01:11.6]} 34... Kxf7 {[%clk 0:01:12.3]}
35. b7 {[%clk 0:01:11.8]} 35... Rb8 {[%clk 0:01:11.6]} 36. Bc4 {[%clk
0:01:11.1]} 1-0

[Event "Early-Titled-Tuesday-Blitz-March-05-2024"]
[Site "Chess.com"]
[Date "2024.03.05"]
[Round "2"]
[White "Crazy_girl99"]
[Black "Jospem"]
[Result "0-1"]
[WhiteElo "2528"]
[BlackElo "3057"]
[TimeControl "180+1"]
[EndTime "8:16:23 PST"]
[Termination "Jospem won by resignation"]

1. Nf3 {[%clk 0:02:59.3]} 1... c5 {[%clk 0:03:00.7]} 2. g3 {[%clk 0:02:58.3]}
2... Nc6 {[%clk 0:03:01.3]} 3. Bg2 {[%clk 0:02:58.4]} 3... g6 {[%clk 0:03:02]}
4. c4 {[%clk 0:02:58.5]} 4... Bg7 {[%clk 0:03:02.6]} 5. Nc3 {[%clk 0:02:58.2]}
5... d6 {[%clk 0:03:03.3]} 6. O-O {[%clk 0:02:58.3]} 6... e6 {[%clk 0:03:03.8]}
7. e3 {[%clk 0:02:57.5]} 7... Nge7 {[%clk 0:03:04.1]} 8. d4 {[%clk 0:02:57.7]}
8... O-O {[%clk 0:03:04.4]} 9. b3 {[%clk 0:02:53.8]} 9... cxd4 {[%clk
0:03:04.1]} 10. exd4 {[%clk 0:02:53.8]} 10... d5 {[%clk 0:03:04.6]} 11. Bb2
{[%clk 0:02:53.1]} 11... b6 {[%clk 0:03:04.8]} 12. Rc1 {[%clk 0:02:52.9]} 12...
Ba6 {[%clk 0:03:05]} 13. Ne2 {[%clk 0:02:42.2]} 13... Rc8 {[%clk 0:03:01.4]} 14.
Re1 {[%clk 0:02:35.6]} 14... dxc4 {[%clk 0:03:00.7]} 15. bxc4 {[%clk 0:02:35.5]}
15... Na5 {[%clk 0:03:01.4]} 16. Ne5 {[%clk 0:02:04.1]} 16... Nxc4 {[%clk
0:02:57.3]} 17. Nxc4 {[%clk 0:02:00]} 17... Bxc4 {[%clk 0:02:58.2]} 18. Ba3
{[%clk 0:01:56.1]} 18... b5 {[%clk 0:02:54.4]} 19. Bc5 {[%clk 0:01:51]} 19... a6
{[%clk 0:02:52.5]} 20. Nf4 {[%clk 0:01:46.6]} 20... Qd7 {[%clk 0:02:46.5]} 21.
a4 {[%clk 0:01:43.8]} 21... Rfd8 {[%clk 0:02:45.4]} 22. axb5 {[%clk 0:01:44.1]}
22... axb5 {[%clk 0:02:45.4]} 23. Qf3 {[%clk 0:01:25]} 23... Nf5 {[%clk
0:02:43.6]} 24. Red1 {[%clk 0:01:18]} 24... Nxd4 {[%clk 0:02:42.1]} 25. Bxd4
{[%clk 0:01:15.9]} 25... Bxd4 {[%clk 0:02:43]} 26. h4 {[%clk 0:01:03.8]} 26...
e5 {[%clk 0:02:42.2]} 27. Bh3 {[%clk 0:01:03.4]} 27... f5 {[%clk 0:02:39.7]} 28.
Ne2 {[%clk 0:00:40.4]} 28... e4 {[%clk 0:02:07.5]} 29. Qxe4 {[%clk 0:00:14.7]}
29... Bxf2+ {[%clk 0:02:06.8]} 30. Kxf2 {[%clk 0:00:13.9]} 30... Qxd1 {[%clk
0:02:07.3]} 31. Bxf5 {[%clk 0:00:08.6]} 31... gxf5 {[%clk 0:02:05.5]} 32. Qe7
{[%clk 0:00:04.5]} 32... Qxe2+ {[%clk 0:02:03.8]} 33. Qxe2 {[%clk 0:00:02.5]}
33... Bxe2 {[%clk 0:02:04.7]} 34. Rxc8 {[%clk 0:00:02.2]} 34... Rxc8 {[%clk
0:02:04.8]} 0-1